bitfinex/quotes_ETHUSD_20250123
["timestamp","ask_amount","ask_price","bid_price","bid_amount"]
[1737592339140,3.07513,3251.9,3251.5,1.135292]
[1737592339459,3.07513,3251.9,3251.5,0.7525]
[1737592339829,3.07503,3252.0,3251.5,0.7525]
[1737592340026,3.07495,3252.1,3251.5,3.82795]
[1737592340248,3.07503,3252.0,3251.5,0.7525]
[1737592340471,3.07513,3251.9,3251.5,0.7525]
[1737592342375,3.07495,3252.1,3251.5,4.210752]
[1737592343281,3.07503,3252.0,3251.5,1.135312]
[1737592346529,3.07512,3251.9,3251.5,0.7525]
[1737592350038,3.07486,3252.2,3251.5,0.7525]
[1737592350401,3.07505,3252.0,3251.5,0.7525]
[1737592351188,3.07486,3252.2,3251.5,0.7525]
[1737592351392,0.7754,3253.0,3252.3,3.07471]
[1737592351687,0.7754,3254.1,3252.6,0.7502]
[1737592351889,3.07367,3253.5,3253.0,3.07408]
[1737592352136,3.07345,3253.7,3253.0,3.07408]
[1737592352345,3.07326,3253.9,3253.2,3.07389]
[1737592352484,3.0732,3254.0,3253.4,3.07369]
[1737592352814,3.07314,3254.0,3253.3,0.7502]
[1737592353016,0.62728981,3254.8,3253.8,0.55]
[1737592353221,3.07245,3254.8,3254.2,3.07292]
[1737592353435,3.07245,3254.8,3254.2,5.95326603]
[1737592353591,3.07229,3254.9,3254.2,3.07292]
[1737592353946,3.07229,3254.9,3254.3,0.8166]
[1737592354085,3.07242,3254.8,3254.3,0.8166]
[1737592354836,3.07227,3255.0,3254.3,0.8166]
[1737592355137,3.07239,3254.8,3254.3,0.8166]
[1737592355483,3.07221,3255.0,3254.3,0.8166]
[1737592355731,3.07237,3254.9,3254.3,0.8166]
[1737592355926,3.07245,3254.8,3254.3,0.8166]
[1737592357683,3.07219,3255.0,3254.4,0.58072605]
[1737592357884,3.072,3255.3,3254.6,3.62255]
[1737592358118,3.07201,3255.2,3254.6,1.28908406]
[1737592358789,3.0721,3255.1,3254.7,0.8166]
[1737592359120,3.07226,3255.0,3254.7,0.8166]
[1737592360133,3.07202,3255.2,3254.7,0.8166]
[1737592360318,3.07211,3255.1,3254.7,0.8166]
[1737592360517,3.07153,3255.7,3254.7,0.8166]
[1737592360713,0.307153,3255.6,3254.7,0.8166]
[1737592361025,3.07195,3255.3,3254.7,0.8166]
[1737592361230,3.07174,3255.5,3254.7,0.8166]
[1737592361528,3.07201,3255.2,3254.7,0.8166]
[1737592361828,3.07182,3255.4,3254.8,0.58072167]
[1737592362229,3.07182,3255.4,3254.8,3.65310167]
[1737592362528,3.07182,3255.4,3254.9,0.44697017]
[1737592362945,3.07182,3255.4,3255.0,0.03071935]
[1737592363138,3.07164,3255.6,3255.0,0.58071935]
[1737592363324,3.07164,3255.6,3255.1,0.8166]
[1737592363523,3.07164,3255.6,3255.2,0.03071761]
[1737592363745,3.07164,3255.6,3255.1,0.84731692]
[1737592363970,3.07164,3255.6,3255.1,0.8166]
[1737592364146,3.07188,3255.4,3255.1,0.8166]
[1737592364341,3.07174,3255.5,3255.1,0.8166]
[1737592364539,3.07197,3255.3,3255.1,0.8166]
[1737592365760,3.072,3255.2,3255.1,0.8166]
[1737592366267,3.07186,3255.4,3255.1,0.8166]
[1737592366442,3.07192,3255.3,3255.1,0.8166]
[1737592368168,3.07174,3255.5,3255.1,0.8166]
[1737592368476,3.072,3255.2,3255.1,0.8166]
[1737592368984,3.072,3255.2,3254.7,0.7888]
[1737592369135,3.07226,3255.0,3254.7,0.7888]
[1737592369330,3.07226,3255.0,3254.8,0.55]
[1737592370241,3.07237,3254.9,3254.7,0.7888]
[1737592370434,6.14454,3255.0,3254.7,0.7888]
[1737592370634,3.07226,3255.0,3254.7,0.7888]
[1737592371176,6.14411,3255.2,3254.7,0.7888]
[1737592371331,3.07212,3255.1,3254.7,0.7888]
[1737592371860,3.07204,3255.2,3254.7,0.7888]
[1737592372062,3.07219,3255.0,3254.7,0.7888]
[1737592372363,3.07235,3254.9,3254.7,0.7888]
[1737592373376,1.3966216,3255.7,3254.7,0.7888]
[1737592373377,3.07221,3255.0,3254.7,0.7888]
[1737592374142,3.07207,3255.2,3254.7,0.7888]
[1737592374545,3.072,3255.2,3254.7,0.7888]
[1737592375141,3.07195,3255.3,3254.7,0.7888]
[1737592375349,3.07218,3255.1,3254.7,1.1557146]
[1737592375551,3.07227,3255.0,3254.7,0.7888]
[1737592375748,3.07231,3254.9,3254.7,0.7888]
[1737592376076,3.0726,3254.6,3254.4,0.7888]
[1737592376576,3.07238,3254.8,3254.4,0.7888]
[1737592376779,6.14485,3254.8,3254.4,0.7888]
[1737592376993,6.14485,3254.8,3254.4,3.89082562]
[1737592377170,3.07238,3254.8,3254.4,3.89082562]
[1737592379079,3.07207,3255.2,3254.4,3.89082562]
[1737592379246,3.07208,3255.2,3254.5,3.65337343]
[1737592379590,3.07221,3255.0,3254.5,0.58072343]
[1737592379786,3.07221,3255.0,3254.6,0.75442291]
[1737592379954,3.07221,3255.0,3254.5,0.58072343]
[1737592380155,3.07221,3255.0,3254.5,0.55]
[1737592380156,3.07227,3255.0,3254.5,0.55]
[1737592380985,3.07238,3254.9,3254.5,0.55]
[1737592381279,3.07233,3254.9,3254.5,0.55]
[1737592381518,3.86728,3255.5,3254.4,0.7888]
[1737592381519,3.0719,3255.4,3254.4,0.7888]
[1737592381691,3.07247,3254.8,3254.4,0.7888]
[1737592381844,3.07197,3255.3,3254.4,0.7888]
[1737592382049,3.07254,3254.7,3254.4,0.7888]
[1737592384459,3.07295,3254.2,3254.1,0.8239]
[1737592384784,3.07266,3254.5,3253.7,0.8239]
[1737592385087,3.07378,3253.4,3253.0,0.8239]
[1737592385287,0.7754,3254.0,3253.0,0.8239]
[1737592385502,3.07359,3253.6,3253.1,35.62039]
[1737592385664,3.07316,3254.0,3253.2,0.03073689]
[1737592385999,3.07283,3254.4,3253.8,0.55]
[1737592386290,3.07283,3254.4,3253.8,0.03072962]
[1737592386291,3.0728,3254.4,3253.8,0.03072962]
[1737592386596,3.0728,3254.4,3253.8,35.0]
[1737592386755,3.0728,3254.4,3253.9,3.10202562]
[1737592387249,3.0728,3254.4,3253.7,3.62335]
[1737592387491,3.0728,3254.4,3253.8,35.03072963]
[1737592387651,3.07268,3254.5,3254.0,0.8239]
[1737592387856,3.07285,3254.4,3254.0,0.8239]
[1737592388208,3.07287,3254.3,3254.0,3.92592562]
[1737592388376,3.07285,3254.4,3254.0,3.92592562]
[1737592389653,3.07248,3254.7,3254.1,0.55]
[1737592390005,3.07238,3254.9,3254.1,0.58072907]
[1737592390202,3.07211,3255.1,3254.3,3.62278]
[1737592390409,3.07219,3255.0,3254.3,3.65350499]
[1737592390611,3.07192,3255.3,3254.3,3.65350499]
[1737592390612,3.07192,3255.3,3254.5,0.55]
[1737592390759,3.07192,3255.3,3254.7,0.55]
[1737592391076,3.07163,3255.6,3254.8,0.03072072]
[1737592391290,3.07176,3255.5,3254.8,0.55]
[1737592391485,3.07163,3255.6,3255.0,0.8239]
[1737592391706,3.07173,3255.5,3255.0,0.8239]
[1737592392198,0.7754,3256.0,3255.0,0.8239]
[1737592392199,3.07163,3255.6,3255.0,0.8239]
[1737592392702,3.07183,3255.4,3255.0,0.8239]
[1737592393875,3.07182,3255.4,3255.0,0.8239]
[1737592394561,3.07163,3255.6,3255.0,0.8239]
[1737592394805,0.7754,3256.0,3255.0,0.8239]
[1737592395018,3.07165,3255.6,3255.1,0.389609]
[1737592395592,3.07173,3255.5,3255.1,0.389609]
[1737592395820,3.07165,3255.6,3255.2,0.55]
[1737592395978,3.07148,3255.8,3255.2,0.55]
[1737592396185,3.07139,3255.9,3255.4,1.3739]
[1737592396538,3.07117,3256.1,3255.4,4.44563]
[1737592397017,3.07099,3256.3,3255.4,4.44563]
[1737592397018,3.07099,3256.3,3255.8,0.55]
[1737592397193,3.07049,3256.8,3256.2,0.55]
[1737592397392,3.07049,3256.8,3256.3,0.03070541]
[1737592398114,3.07049,3256.8,3256.4,0.8239]
[1737592398280,3.38292,3256.9,3256.4,0.8239]
[1737592398488,0.3125,3256.9,3256.7,0.8239]
[1737592398710,0.3125,3256.9,3256.8,0.55]
[1737592399594,0.3125,3256.9,3256.7,0.8239]
[1737592399794,0.3125,3256.9,3256.4,0.7949]
[1737592399971,3.07078,3256.5,3256.4,0.7949]
[1737592400330,3.07098,3256.3,3256.1,0.7949]
[1737592400498,3.07098,3256.3,3255.4,5.38]
[1737592400499,3.07123,3256.1,3255.8,0.7949]
[1737592400706,3.07134,3255.9,3255.8,0.7949]
[1737592400881,0.8154,3256.6,3255.4,2.88034603]
[1737592400882,3.07145,3255.8,3255.4,0.7949]
[1737592401076,0.8154,3256.6,3255.5,0.55]
[1737592401077,3.07078,3256.5,3255.5,0.55]
[1737592401279,3.07154,3255.7,3255.5,0.17798542]
[1737592401604,3.07157,3255.7,3255.5,0.17798542]
[1737592401967,3.07145,3255.8,3255.5,0.17798542]
[1737592402791,3.07087,3256.4,3255.5,0.17798542]
[1737592402987,0.8154,3256.6,3255.5,0.17798542]
[1737592403404,3.07143,3255.9,3255.5,0.75870031]
[1737592403702,3.07143,3255.9,3255.6,0.15536003]
[1737592404131,3.07153,3255.7,3255.6,0.15536003]
[1737592404309,3.07148,3255.8,3255.6,0.15536003]
[1737592404736,3.07143,3255.9,3255.6,0.15536003]
[1737592405695,3.0715,3255.8,3255.6,0.15536003]
[1737592405900,3.07144,3255.8,3255.6,0.15536003]
[1737592406632,3.07144,3255.8,3255.6,0.70536003]
[1737592407525,3.07144,3255.8,3255.6,0.15536003]
[1737592409433,3.07125,3256.0,3255.6,0.15536003]
[1737592409825,3.07136,3255.9,3255.6,0.15536003]
[1737592411455,3.07144,3255.8,3255.6,0.15536003]
[1737592411675,3.07092,3256.4,3255.6,0.15536003]
[1737592411851,3.07143,3255.9,3255.6,0.15536003]
[1737592412158,3.07125,3256.0,3255.6,0.15536003]
[1737592415532,3.07125,3256.0,3255.8,0.55]
[1737592415845,3.07089,3256.4,3255.9,0.8199]
[1737592416175,3.07069,3256.6,3256.0,0.55]
[1737592416493,3.07053,3256.8,3256.2,0.55]
[1737592416633,3.07053,3256.8,3256.4,0.8199]
[1737592417189,0.3125,3256.9,3256.4,0.8199]
[1737592417387,0.3125,3256.9,3256.5,0.58070436]
[1737592417670,0.3125,3256.9,3256.8,0.8199]
[1737592418564,0.11353,3257.5,3257.4,3.06993]
[1737592418896,0.11353,3257.5,3257.4,4.43983]
[1737592419069,0.11353,3257.5,3257.4,4.47052263]
[1737592419234,0.11353,3257.5,3257.4,1.40059263]
[1737592419438,0.11353,3257.5,3257.4,2.19545591]
[1737592420277,0.11353,3257.5,3257.4,5.26538591]
[1737592422381,0.11353,3257.5,3257.4,2.16476328]
[1737592423406,0.11353,3257.5,3257.4,5.23469328]
[1737592423893,0.11353,3257.5,3257.4,5.26538461]
[1737592424596,3.0692,3258.2,3257.5,3.6198]
[1737592424889,3.0692,3258.2,3257.9,0.55]
[1737592425091,3.0692,3258.2,3257.9,0.58069114]
[1737592425474,3.06906,3258.4,3257.9,0.58069114]
[1737592425651,0.1677445,3258.7,3258.1,0.55]
[1737592425850,0.1677445,3258.7,3258.2,3.47795015]
[1737592426069,3.06881,3258.6,3258.4,0.55]
[1737592426273,3.06881,3258.6,3258.3,0.40586388]
[1737592426480,14.15,3258.1,3258.0,0.55]
[1737592426790,10.12204985,3257.7,3257.6,3.47795015]
[1737592427759,10.12204985,3257.7,3257.6,2.86577203]
[1737592429593,10.12204985,3257.7,3257.5,2.86985081]
[1737592429783,10.13513985,3257.7,3257.5,2.86985081]
[1737592429982,5.75755993,3257.7,3257.6,4.22474584]
[1737592430185,4.26601187,3257.7,3257.6,7.29448584]
[1737592430505,4.26601187,3257.7,3257.6,4.19405081]
[1737592431078,9.53237567,3257.7,3257.6,7.2944834]
[1737592431282,9.53237567,3257.7,3257.6,7.26379081]
[1737592431483,9.53237567,3257.7,3257.6,8.60414189]
[1737592432385,8.76201517,3257.7,3257.6,8.60414189]
[1737592432571,11.57367746,3257.7,3257.6,8.60414189]
[1737592433300,11.12158067,3257.7,3257.6,8.60414189]
[1737592434624,0.3125,3258.2,3258.1,3.06927]
[1737592434829,0.3125,3258.2,3258.1,7.90787081]
[1737592435038,0.3125,3258.2,3258.1,7.87718581]
[1737592435336,0.3125,3258.2,3258.1,42.87718581]
[1737592435690,0.3125,3258.2,3258.1,42.87475629]
[1737592436140,5.24,3258.6,3258.5,6.71051129]
[1737592436306,5.24,3258.6,3258.5,8.35021098]
[1737592436628,5.24,3258.6,3258.5,8.90021098]
[1737592438131,5.24,3258.6,3258.5,3.52916985]
[1737592438333,5.24,3258.6,3258.5,6.59805985]
[1737592438539,5.24,3258.6,3258.5,7.14805985]
[1737592440097,14.15,3258.6,3258.5,7.14805985]
[1737592440827,14.15,3258.6,3258.5,4.07916985]
[1737592441231,14.15,3258.6,3258.5,7.18119547]
[1737592441530,14.15,3258.6,3258.5,11.02428547]
[1737592442032,8.91,3258.6,3258.5,11.02428547]
[1737592442799,9.63e-06,3258.6,3258.5,14.02428547]
[1737592443023,9.63e-06,3258.6,3258.5,14.43213944]
[1737592443297,0.1677445,3258.7,3258.6,7.393]
[1737592443498,0.1677445,3258.7,3258.6,42.393]
[1737592446231,9.63e-06,3259.6,3259.3,3.06809]
[1737592446431,9.63e-06,3259.6,3259.4,0.58067408]
[1737592447534,0.25000963,3259.6,3258.9,3.89666]
[1737592447733,0.75000963,3259.6,3259.1,0.55]
[1737592448048,9.63e-06,3259.3,3258.7,6.59786985]
[1737592448649,0.25,3259.1,3258.8,0.03067905]
[1737592448854,0.25,3259.1,3259.0,0.59878438]
[1737592449010,0.25,3259.1,3258.8,0.55]
[1737592449378,9.63e-06,3259.0,3258.9,0.03068082]
[1737592449585,9.63e-06,3259.0,3258.9,3.64920082]
[1737592451281,9.63e-06,3259.0,3258.9,3.61852]
[1737592451644,9.63e-06,3259.0,3258.9,38.61852]
[1737592452408,9.63e-06,3259.0,3258.9,35.55]
[1737592453079,9.63e-06,3259.0,3258.9,35.86489186]
[1737592453485,9.63e-06,3259.0,3258.9,36.88254292]
[1737592453669,9.63e-06,3259.0,3258.9,39.95106292]
[1737592454060,9.63e-06,3259.0,3258.9,36.88254292]
[1737592454899,9.63e-06,3259.0,3258.9,41.27410908]
[1737592455699,0.75,3259.3,3259.1,0.55]
[1737592456412,0.25,3259.3,3259.2,35.0]
[1737592456563,0.75,3259.3,3259.2,35.0]
[1737592456971,0.25,3259.3,3259.2,35.22619271]
[1737592457446,0.25,3259.3,3259.2,35.54108457]
[1737592457646,0.25,3259.3,3259.2,36.55873563]
[1737592458455,9.31944,3259.3,3259.2,1.55873563]
[1737592458639,18.22944,3259.3,3259.2,1.55873563]
[1737592458856,18.22944,3259.3,3259.2,5.63e-06]
[1737592459945,3.31861,3258.8,3258.7,0.4725431]
[1737592460150,4.08271,3258.8,3258.7,0.4725431]
[1737592460326,4.58271,3258.8,3258.7,0.4725431]
[1737592460523,5.347831,3258.8,3258.7,0.4725431]
[1737592460725,19.497831,3258.8,3258.7,3.1e-06]
[1737592460928,21.733731,3258.8,3258.6,7.94e-06]
[1737592461266,6.86348868,3258.7,3258.6,7.94e-06]
[1737592461414,6.8328,3258.7,3258.6,7.94e-06]
[1737592461614,9.3894531,3258.7,3258.6,7.94e-06]
[1737592461920,23.5394531,3258.7,3258.6,7.94e-06]
[1737592462650,17.96917,3258.2,3258.1,0.3627287]
[1737592462858,8.91,3257.3,3257.2,35.0]
[1737592463031,11.98002,3257.3,3257.2,35.0]
[1737592463635,3.32031,3257.0,3256.9,0.3627287]
[1737592463872,12.73031,3257.0,3256.9,0.3627287]
[1737592464168,13.55481,3257.0,3256.9,0.3627287]
[1737592466163,3.32068,3256.6,3256.5,0.3627287]
[1737592466834,0.25,3256.6,3256.5,0.3627287]
[1737592467156,0.25,3256.6,3256.5,35.3627287]
[1737592467364,0.25,3256.6,3256.5,36.52857175]
[1737592468165,0.75,3256.7,3256.5,36.52857175]
[1737592468363,0.25,3256.7,3256.6,0.03070419]
[1737592468941,8.38019405,3256.9,3256.6,0.03070419]
[1737592469446,8.38019405,3256.9,3256.6,0.58070419]
[1737592469655,8.13019405,3256.9,3256.7,3.10202562]
[1737592469831,8.13019405,3256.8,3256.7,3.10202562]
[1737592470452,8.13019405,3256.8,3256.7,3.65202562]
[1737592470639,8.13019405,3256.8,3256.7,6.72261562]
[1737592470846,8.13019405,3256.8,3256.7,3.62059]
[1737592471045,8.13019405,3256.8,3256.7,39.42599]
[1737592471455,8.13019405,3256.8,3256.7,40.01273664]
[1737592471647,8.13019405,3256.8,3256.7,40.13293405]
[1737592471888,8.13019405,3256.8,3256.7,37.06234405]
[1737592472178,8.38019405,3256.8,3256.7,35.70694405]
[1737592472669,11.45068405,3256.8,3256.7,0.34573773]
[1737592474063,11.45068405,3256.8,3256.7,0.22554032]
[1737592474240,0.25,3256.6,3256.3,0.61719887]
[1737592474440,0.25,3256.6,3256.4,3.10202562]
[1737592475175,8.13019405,3256.5,3256.4,3.10202562]
[1737592475539,8.13019405,3256.5,3256.4,6.72289562]
[1737592475759,8.13019405,3256.8,3256.7,3.62059]
[1737592476007,8.13019405,3256.8,3256.7,8.73745175]
[1737592476154,8.13019405,3256.8,3256.7,8.70675108]
[1737592476383,8.13019405,3256.8,3256.7,43.70675108]
[1737592476707,5.24,3257.9,3257.4,3.06988]
[1737592476708,8.13019405,3257.5,3257.4,3.06988]
[1737592477257,8.13019405,3257.5,3257.4,38.06988]
[1737592477591,8.13019405,3257.5,3257.4,41.99880562]
[1737592477753,8.13019405,3258.0,3257.9,3.06946]
[1737592477954,8.13019405,3258.0,3257.8,3.06949]
[1737592478211,8.13019405,3258.0,3257.9,0.55]
[1737592478653,8.13019405,3258.0,3257.9,3.73963954]
[1737592478855,8.13019405,3258.0,3257.9,4.11360349]
[1737592479456,8.13019405,3258.0,3257.9,4.70008989]
[1737592480170,8.13019405,3258.0,3257.9,1.63062989]
[1737592480885,8.13019405,3258.0,3257.9,1.08062989]
[1737592481062,8.13019405,3258.0,3257.9,0.70666594]
[1737592482293,8.13019405,3258.0,3257.9,1.53356594]
[1737592482599,8.13019405,3258.0,3257.9,1.17261353]
[1737592482759,8.13019405,3258.0,3257.9,0.34571353]
[1737592483807,8.13019405,3258.0,3257.9,3.96517353]
[1737592483992,8.13019405,3258.0,3257.9,4.36169088]
[1737592485069,8.13019405,3258.0,3257.9,39.36169088]
[1737592485674,8.13019405,3258.0,3257.9,39.72264329]
[1737592488914,8.13019405,3258.0,3257.9,4.72264329]
[1737592489409,8.13019405,3258.0,3257.9,39.72264329]
[1737592492716,8.13019405,3258.0,3257.9,4.72264329]
[1737592493287,8.13019405,3258.0,3257.9,39.72264329]
[1737592494387,8.13019405,3258.0,3257.9,35.70666594]
[1737592494648,8.13019405,3258.0,3257.9,0.70666594]
[1737592496157,8.13019405,3258.0,3257.9,4.32612594]
[1737592496364,8.13019405,3258.0,3257.9,0.34571353]
[1737592497034,12.00995405,3258.0,3257.9,0.34571353]
[1737592499775,8.13019405,3258.0,3257.9,0.34571353]
[1737592499935,8.13019405,3258.0,3257.9,0.68724388]
[1737592499936,8.38019405,3258.0,3257.9,0.68724388]
[1737592500134,8.38019405,3258.0,3257.9,0.34571353]
[1737592502144,8.13019405,3258.0,3257.9,3.96517353]
[1737592502367,8.38019405,3258.0,3257.9,3.96517353]
[1737592502871,8.38019405,3258.0,3257.9,6.96517353]
[1737592502872,8.13019405,3258.0,3257.9,6.96517353]
[1737592503335,0.8104,3259.0,3258.2,3.06917]
[1737592503537,0.25,3258.6,3258.4,0.7935]
[1737592503783,0.25,3258.6,3258.4,0.55]
[1737592504369,0.25,3258.6,3258.5,0.150865]
[1737592505241,0.25,3258.6,3258.5,3.219755]
[1737592505972,0.25,3258.8,3258.5,3.219755]
[1737592506189,0.25,3258.8,3258.6,0.3769755]
[1737592506533,0.25,3258.8,3258.6,0.12017954]
[1737592506736,3.31865,3258.8,3258.6,0.12017954]
[1737592507470,0.25,3258.8,3258.6,0.12017954]
[1737592507673,0.25,3258.8,3258.7,0.12017954]
[1737592508033,0.25,3258.8,3258.7,0.70666594]
[1737592508238,9.16,3258.8,3258.7,0.70666594]
[1737592508870,12.22861,3258.8,3258.7,0.70666594]
[1737592509435,9.16,3258.8,3258.7,0.70666594]
[1737592510074,12.22861,3258.8,3258.7,0.70666594]
[1737592510776,13.839365,3258.8,3258.7,0.70666594]
[1737592511291,12.22861,3258.8,3258.7,0.70666594]
[1737592511945,12.99031,3258.8,3258.7,0.70666594]
[1737592514089,12.99031,3258.8,3258.7,0.34571353]
[1737592514296,18.23031,3258.8,3258.7,0.34571353]
[1737592515490,14.4,3258.8,3258.1,0.5864864]
[1737592515684,12.74087,3258.2,3258.1,0.5864864]
[1737592516198,12.99087,3258.2,3258.1,0.5864864]
[1737592516409,18.23087,3258.2,3258.1,0.5864864]
[1737592516887,18.23087,3258.2,3258.1,0.34665302]
[1737592517093,18.23087,3258.2,3258.1,3.02e-06]
[1737592517309,20.21451734,3258.2,3258.1,3.02e-06]
[1737592518395,9.16,3256.8,3256.7,5.43e-06]
[1737592519165,12.23049,3256.8,3256.7,5.43e-06]
[1737592519766,9.16,3256.8,3256.7,5.43e-06]
[1737592520496,0.25,3256.4,3256.2,3.94243411]
[1737592520746,0.25,3256.4,3256.3,0.39424341]
[1737592521271,0.25,3256.4,3256.2,0.7952]
[1737592521494,0.25,3256.4,3256.2,0.8259063]
[1737592521861,0.25,3256.4,3256.2,0.7952]
[1737592522170,8.91,3256.3,3256.2,0.7952]
[1737592522870,8.91,3256.3,3256.2,4.41626]
[1737592523081,8.91,3256.3,3256.2,5.51484864]
[1737592523288,8.91,3256.3,3256.2,5.54555589]
[1737592523459,8.91,3256.3,3256.2,5.51484864]
[1737592523460,9.16,3256.3,3256.2,5.51484864]
[1737592523665,9.16,3256.3,3256.2,2.44378864]
[1737592523970,9.16,3256.3,3256.2,0.7952]
[1737592524535,8.91,3256.2,3255.9,3.89718725]
[1737592524696,0.25,3256.1,3255.9,3.86648]
[1737592524861,0.25,3256.1,3256.0,6.62125]
[1737592525189,0.25,3256.1,3256.0,7.362895]
[1737592526097,0.25,3256.1,3256.0,7.64617459]
[1737592526300,8.91,3256.2,3256.0,7.64617459]
[1737592526599,8.91,3256.2,3256.1,4.4470584]
[1737592527364,8.91,3256.2,3256.1,10.59932698]
[1737592527679,8.91,3257.0,3256.9,3.8656]
[1737592528001,8.91,3257.0,3256.9,4.4156]
[1737592528400,8.91,3257.0,3256.9,4.69887959]
[1737592528602,9.16,3257.0,3256.9,4.69887959]
[1737592528777,9.16,3257.0,3256.9,0.28327959]
[1737592530010,9.16,3257.0,3256.8,0.28327959]
[1737592530209,12.23037,3257.0,3256.8,0.28327959]
[1737592530502,9.16,3257.0,3256.8,1.07847959]
[1737592530993,8.91,3257.0,3256.9,0.55]
[1737592531192,8.91,3257.0,3256.9,4.2658649]
[1737592531401,8.91,3257.0,3256.9,4.54914449]
[1737592532408,8.91,3257.0,3256.9,4.62394366]
[1737592538399,8.91,3257.0,3256.9,4.07394366]
[1737592538595,8.91,3257.0,3256.9,1.00354366]
[1737592538802,8.91,3257.0,3256.9,0.4786527]
[1737592539110,18.03801,3257.0,3256.9,0.4786527]
[1737592539611,18.03801,3257.0,3256.9,0.40385353]
[1737592546483,8.75614647,3255.7,3255.4,3.07178]
[1737592546777,8.75614647,3255.7,3254.8,3.07232]
[1737592546778,0.25,3254.9,3254.7,3.14723411]
[1737592547205,8.50614647,3255.0,3254.6,3.14723411]
[1737592547206,0.25,3254.7,3254.6,3.14723411]
[1737592547404,8.75614647,3254.7,3254.6,3.14723411]
[1737592550081,11.82861647,3254.7,3254.6,3.14723411]
[1737592551226,8.50614647,3254.6,3254.0,3.85291]
[1737592551414,0.03068868,3254.5,3254.2,3.07295]
[1737592551614,7.25635062,3254.6,3254.2,3.07295]
[1737592553662,0.30635062,3254.6,3254.5,3.07266]
[1737592553963,0.25,3254.2,3254.1,6.458311]
[1737592554245,0.25,3254.4,3254.3,3.07285]
[1737592554410,0.05635062,3254.6,3254.5,3.07266]
[1737592554609,0.05635062,3254.6,3254.5,3.65338162]
[1737592554810,0.05635062,3254.6,3254.5,3.62266]
[1737592555240,0.05635062,3254.6,3254.5,38.62266]
[1737592559041,0.05635062,3254.6,3254.5,38.74328317]
[1737592559342,0.05635062,3254.6,3254.5,41.84530879]
[1737592560356,0.30635062,3254.6,3254.5,41.91514084]
[1737592560515,0.05635062,3254.6,3254.5,41.91514084]
[1737592562132,0.05635062,3254.6,3254.5,47.78412983]
[1737592562835,0.05635062,3254.6,3254.5,48.57532983]
[1737592563715,0.05635062,3254.6,3254.5,45.57532983]
[1737592563919,0.30635062,3254.6,3254.5,41.91514084]
[1737592564450,0.30635062,3254.6,3254.5,41.36514084]
[1737592564815,0.30635062,3254.6,3254.5,38.29248084]
[1737592565147,0.30635062,3254.6,3254.5,3.29248084]
[1737592565348,0.30635062,3254.6,3254.5,0.19045522]
[1737592567763,9.21635062,3254.6,3254.5,0.19045522]
[1737592568657,9.97135062,3254.6,3254.5,0.19045522]
[1737592570765,7.99635062,3254.6,3254.5,0.19045522]
[1737592574269,7.24135062,3254.6,3254.5,0.19045522]
[1737592574482,7.24135062,3254.6,3254.5,3.58943574]
[1737592576560,7.24135062,3254.6,3254.5,38.58943574]
[1737592576760,7.24135062,3254.6,3254.5,0.19045522]
[1737592577283,7.99635062,3254.6,3254.5,0.19045522]
[1737592578082,11.06892062,3254.6,3254.5,0.19045522]
[1737592579664,7.99635062,3254.6,3254.5,0.19045522]
[1737592580159,7.24135062,3254.6,3254.5,3.26311522]
[1737592580356,7.24135062,3254.6,3254.5,8.09699873]
[1737592581038,7.24135062,3254.6,3254.5,5.22800974]
[1737592583355,7.24135062,3254.6,3254.5,43.09699873]
[1737592583534,7.24135062,3255.5,3254.7,0.7813]
[1737592583733,0.8218,3255.4,3254.7,3.85375]
[1737592583940,3.07197,3255.3,3254.8,0.45559616]
[1737592584144,3.07197,3255.3,3254.9,35.0]
[1737592584767,3.8937,3255.4,3255.0,0.07022116]
[1737592584962,3.8937,3255.4,3255.0,0.19084433]
[1737592585161,3.07193,3255.3,3255.0,0.19084433]
[1737592585667,3.07208,3255.2,3255.0,0.19084433]
[1737592586671,3.07208,3255.2,3255.1,0.12062317]
[1737592587166,3.07208,3255.2,3255.1,0.19084433]
[1737592587562,11.14873062,3255.2,3255.1,0.19084433]
[1737592587871,11.14873062,3255.2,3255.1,0.12062317]
[1737592588066,12.57079368,3255.2,3255.1,0.12062317]
[1737592589837,11.14873062,3255.2,3255.1,0.12062317]
[1737592590751,11.14873062,3255.2,3255.1,0.19084433]
[1737592595993,11.14873062,3255.2,3255.1,0.12062317]
[1737592596137,11.14872062,3255.2,3255.1,0.12062317]
[1737592604375,11.14872062,3255.2,3255.1,0.19062346]
[1737592604888,11.14872062,3255.2,3255.1,0.12062317]
[1737592609517,12.57078268,3255.2,3255.1,0.12062317]
[1737592615317,17.81078268,3255.2,3255.1,0.12062317]
[1737592619023,16.38872062,3255.2,3255.1,0.12062317]
[1737592622802,15.55342062,3255.2,3255.1,0.12062317]
[1737592624530,16.42082062,3255.2,3255.1,0.12062317]
[1737592627720,15.55342062,3255.2,3255.1,0.12062317]
[1737592633439,15.55342062,3255.2,3255.1,0.19046778]
[1737592633647,15.55342062,3255.2,3255.1,0.12062317]
[1737592635006,15.55342062,3255.2,3255.1,0.19040468]
[1737592635363,15.55342062,3255.2,3255.1,0.12062317]
[1737592636551,16.42082062,3255.2,3255.1,0.12062317]
[1737592639115,15.55342062,3255.2,3255.1,0.12062317]
[1737592642469,15.55342062,3255.2,3255.1,0.19038892]
[1737592642656,12.48135062,3255.2,3255.1,0.19038892]
[1737592643023,12.48135062,3255.2,3255.1,0.60084581]
[1737592643474,12.48135062,3255.2,3255.1,0.19038892]
[1737592648028,11.20095537,3255.2,3255.1,3.26248892]
[1737592648228,11.20095537,3255.2,3255.1,4.10438892]
[1737592648378,11.20095537,3255.2,3255.1,6.97337791]
[1737592648587,11.20095537,3256.1,3256.0,3.91315]
[1737592649036,11.20095537,3256.1,3256.0,3.982574]
[1737592649190,11.20095537,3256.1,3256.0,0.911324]
[1737592649626,11.20095537,3256.1,3256.0,1.3095934]
[1737592649808,11.20095537,3256.1,3256.0,1.43021657]
[1737592651312,11.20095537,3256.1,3256.0,4.50146657]
[1737592651627,5.24,3256.1,3256.0,39.50146657]